bitfinex/quotes_ETHUSD_20250524
["timestamp","ask_amount","ask_price","bid_price","bid_amount"]
[1748078137720,3.91742077,2552.7,2552.6,14.02]
[1748078140476,3.91742077,2552.7,2552.6,28.691]
[1748078147250,3.91742077,2552.7,2552.6,32.02096718]
[1748078148393,3.91742077,2552.7,2552.6,28.691]
[1748078155235,3.9171681,2552.9,2552.6,30.3301]
[1748078155414,3.9171681,2552.9,2552.8,8.0]
[1748078157924,3.9171681,2552.9,2552.8,24.907]
[1748078159634,3.9171681,2552.9,2552.8,30.927]
[1748078161237,5.0337681,2552.9,2552.8,31.576]
[1748078161538,1.1166,2552.3,2552.2,6.02]
[1748078161709,5.03463471,2552.3,2552.2,14.669]
[1748078161895,5.03463471,2552.3,2552.2,22.669]
[1748078162418,3.91803471,2552.3,2552.2,22.669]
[1748078164894,3.91803471,2552.3,2552.2,23.17087967]
[1748078165094,3.91803471,2552.3,2552.2,23.64957002]
[1748078165295,3.91803471,2552.3,2552.2,24.55187967]
[1748078165500,3.91803471,2552.3,2552.2,38.716]
[1748078170654,3.91803471,2552.3,2552.2,24.05]
[1748078170823,5.03463471,2552.3,2552.2,30.717]
[1748078171031,5.03463471,2552.3,2552.2,38.717]
[1748078171211,5.03463471,2552.3,2552.2,22.667]
[1748078177161,5.03463471,2552.3,2552.2,28.687]
[1748078178354,3.91803471,2552.3,2552.2,28.687]
[1748078178560,3.91793335,2552.4,2552.3,9.6198]
[1748078181366,3.91759806,2552.6,2552.3,25.6698]
[1748078181519,2.56634439,2552.7,2552.5,8.0]
[1748078181724,6.48376516,2552.7,2552.6,21.86847967]
[1748078181955,6.48376516,2552.7,2552.6,23.02439064]
[1748078182151,6.48376516,2552.7,2552.6,22.52251097]
[1748078183139,3.91742077,2552.7,2552.6,22.52251097]
[1748078185576,3.91701253,2553.0,2552.7,8.0]
[1748078185869,3.91713119,2552.9,2552.8,28.688]
[1748078194278,3.91713119,2552.9,2552.8,20.688]
[1748078194903,3.91713119,2552.9,2552.8,28.688]
[1748078195089,5.03373119,2552.9,2552.8,28.682]
[1748078199412,16.77473119,2552.9,2552.8,28.682]
[1748078200811,16.77473119,2552.9,2552.8,22.662]
[1748078201165,16.77473119,2552.9,2552.8,8.0]
[1748078201572,16.90968917,2552.9,2552.8,8.0]
[1748078202470,18.46926894,2552.9,2552.8,8.0]
[1748078205087,19.01926894,2552.9,2552.8,8.0]
[1748078206435,19.01926894,2552.9,2552.8,7.36388031]
[1748078208539,17.45968917,2552.9,2552.8,7.36388031]
[1748078210037,20.02603356,2552.9,2552.8,7.36388031]
[1748078210195,19.47703356,2552.9,2552.8,7.36388031]
[1748078210400,18.36043356,2552.9,2552.8,7.36388031]
[1748078212742,18.36143356,2552.9,2552.8,7.36388031]
[1748078212903,15.79508917,2552.9,2552.8,7.36388031]
[1748078214549,4.05208917,2552.9,2552.8,7.36388031]
[1748078214754,17.35527021,2552.9,2552.8,7.36388031]
[1748078220981,17.35527021,2552.9,2552.8,6.72782344]
[1748078221593,15.79508917,2552.9,2552.8,6.72782344]
[1748078222693,4.05208917,2552.9,2552.8,6.72782344]
[1748078223641,4.05208917,2552.9,2552.8,8.37942344]
[1748078224265,4.05208917,2552.9,2552.8,14.39942344]
[1748078231209,4.05208917,2552.9,2552.8,15.47489539]
[1748078234714,4.05208917,2552.9,2552.8,14.39942344]
[1748078235485,0.13495798,2552.9,2552.8,14.39942344]
[1748078235688,4.05207185,2552.9,2552.8,14.39942344]
[1748078236811,0.13495798,2552.9,2552.8,14.39942344]
[1748078239105,0.13495798,2552.9,2552.8,24.42942344]
[1748078239333,0.13495798,2552.9,2552.8,28.37941653]
[1748078240640,4.05207185,2552.9,2552.8,28.37941653]
[1748078242453,4.05207185,2552.9,2552.8,24.42942344]
[1748078242656,4.05207185,2552.9,2552.8,36.16942344]
[1748078245028,0.13495798,2552.9,2552.8,36.16942344]
[1748078245344,0.13495798,2552.9,2552.8,36.67130311]
[1748078245840,0.13495798,2552.9,2552.8,36.16942344]
[1748078247063,0.13495798,2552.9,2552.8,40.11941653]
[1748078247233,4.05207185,2552.9,2552.8,40.11941653]
[1748078249114,4.05207185,2552.9,2552.8,36.16942344]
[1748078253666,4.05207185,2552.9,2552.8,53.07442344]
[1748078254966,4.05207185,2552.9,2552.8,39.68282344]
[1748078259769,4.05207185,2552.9,2552.8,29.65282344]
[1748078259925,0.13495798,2552.9,2552.8,31.68380311]
[1748078260232,0.13495798,2552.9,2552.8,35.6337962]
[1748078260640,0.13495798,2552.9,2552.8,36.10260857]
[1748078262360,0.13495798,2552.9,2552.8,30.08260857]
[1748078268070,0.13495798,2552.9,2552.8,33.99987588]
[1748078268646,1.56324765,2553.6,2553.2,8.0]
[1748078268877,1.56324765,2553.6,2553.4,8.0]
[1748078269081,3.91597877,2553.7,2553.4,8.0]
[1748078269437,3.91600655,2553.7,2553.4,8.0]
[1748078269673,3.91604615,2553.6,2553.4,8.0]
[1748078269971,3.91604743,2553.6,2553.4,11.81520724]
[1748078271284,3.91604743,2553.6,2553.5,1.5886]
[1748078271478,2.56634439,2553.8,2553.5,1.5886]
[1748078271791,6.48219797,2553.8,2553.5,1.5886]
[1748078271952,2.56634439,2553.8,2553.5,1.5886]
[1748078272155,6.48210196,2553.8,2553.6,9.73201119]
[1748078272352,6.48210196,2553.8,2553.7,19.739]
[1748078275292,6.48210196,2553.8,2553.7,21.2961]
[1748078275496,2.56634439,2553.8,2553.7,21.79797967]
[1748078276597,0.05,2553.9,2553.8,8.0]
[1748078276764,0.05,2553.9,2553.8,42.69699909]
[1748078276963,3.96558009,2553.9,2553.8,42.69699909]
[1748078277207,3.96558009,2553.9,2553.8,48.71699909]
[1748078278326,3.96558009,2553.9,2553.8,60.45299909]
[1748078280215,3.96558009,2553.9,2553.8,48.71699909]
[1748078280516,5.08218009,2553.9,2553.8,31.543]
[1748078280945,5.08218009,2553.9,2553.8,39.543]
[1748078281845,5.08218009,2553.9,2553.8,31.543]
[1748078282157,5.08218009,2553.9,2553.8,39.543]
[1748078288556,5.08218009,2553.9,2553.8,22.642]
[1748078288927,5.08218009,2553.9,2553.8,22.633]
[1748078290029,5.63218009,2553.9,2553.8,22.633]
[1748078292555,5.08218009,2553.9,2553.8,22.633]
[1748078292964,16.81918009,2553.9,2553.8,22.633]
[1748078294344,5.08218009,2553.9,2553.8,22.633]
[1748078294661,3.96558009,2553.9,2553.8,22.633]
[1748078295256,3.96558009,2553.9,2553.8,29.15487967]
[1748078295434,3.96558009,2553.9,2553.8,31.69613454]
[1748078296367,0.05,2553.9,2553.8,32.16494691]
[1748078296866,0.05,2553.9,2553.8,17.53194691]
[1748078297099,0.05,2553.9,2553.8,43.90294691]
[1748078297973,0.05,2553.9,2553.8,17.53194691]
[1748078298122,0.05,2553.9,2553.8,43.90294691]
[1748078299064,3.96558009,2553.9,2553.8,42.92925487]
[1748078299849,0.05,2553.9,2553.8,43.43113454]
[1748078300924,3.96558009,2553.9,2553.8,53.46113454]
[1748078301670,0.05,2553.9,2553.8,53.46113454]
[1748078301967,3.96558009,2553.9,2553.8,53.46113454]
[1748078302465,3.96558009,2553.9,2553.8,41.72513454]
[1748078302667,3.96558009,2553.9,2553.8,52.95825487]
[1748078303666,3.96558009,2553.9,2553.8,26.59125487]
[1748078303866,3.96558009,2553.9,2553.8,52.95725487]
[1748078306890,3.96558009,2553.9,2553.8,42.92725487]
[1748078307048,0.05,2553.9,2553.8,42.92725487]
[1748078307236,0.05,2553.9,2553.8,43.42913454]
[1748078307680,0.05,2553.9,2553.8,43.89794691]
[1748078307830,0.05,2553.9,2553.8,47.81368032]
[1748078308484,0.19712045,2554.4,2554.3,11.91496691]
[1748078308632,1.56324765,2554.8,2554.5,1.5921]
[1748078308832,1.56324765,2554.8,2554.7,9.5921]
[1748078309074,0.05,2554.9,2554.7,9.5921]
[1748078309075,0.05,2554.9,2554.7,21.82897967]
[1748078309389,0.05,2554.9,2554.8,22.63]
[1748078309677,3.96404751,2554.9,2554.8,26.57999309]
[1748078312940,3.96404751,2554.9,2554.8,54.36099309]
[1748078313134,3.96404751,2554.9,2554.8,50.411]
[1748078313943,0.05,2554.9,2554.8,50.411]
[1748078314142,3.96404751,2554.9,2554.8,50.411]
[1748078315696,0.05,2554.9,2554.8,50.411]
[1748078316018,3.96404751,2554.9,2554.8,24.05]
[1748078316140,3.96404751,2554.9,2554.8,50.409]
[1748078320392,0.05,2554.9,2554.8,53.17437201]
[1748078320894,3.96404751,2554.9,2554.8,53.17437201]
[1748078321455,3.96404751,2554.9,2554.8,52.67249234]
[1748078322500,3.96404751,2554.9,2554.8,53.17437201]
[1748078322501,0.05,2554.9,2554.8,53.17437201]
[1748078322856,3.96404751,2554.9,2554.8,53.17437201]
[1748078323057,0.05,2554.9,2554.8,53.17437201]
[1748078324099,3.96404751,2554.9,2554.8,53.17437201]
[1748078326314,0.05,2554.9,2554.8,53.17437201]
[1748078326658,3.96404751,2554.9,2554.8,53.17437201]
[1748078328572,0.05,2554.9,2554.8,54.68557201]
[1748078329111,3.91365723,2555.2,2555.1,8.0]
[1748078329285,3.91365723,2555.2,2555.1,25.44718797]
[1748078329694,3.91365723,2555.2,2555.1,26.95838797]
[1748078330781,3.91365723,2555.2,2555.1,27.46026764]
[1748078331515,3.91365723,2555.2,2555.1,11.46026764]
[1748078334620,3.91365723,2555.2,2555.1,11.92908001]
[1748078335140,3.91365723,2555.2,2555.1,28.81908001]
[1748078336537,3.91365723,2555.2,2555.1,33.27788001]
[1748078336717,3.91365723,2555.2,2555.1,45.00688001]
[1748078336917,3.91365723,2555.2,2555.1,44.50500034]
[1748078341146,3.91365723,2555.2,2555.1,30.86]
[1748078341336,3.91365723,2555.2,2555.1,57.203]
[1748078344165,3.91365723,2555.2,2555.1,45.474]
[1748078345250,5.03025723,2555.2,2555.1,45.474]
[1748078345408,3.91365723,2555.2,2555.1,45.474]
[1748078345609,3.91330169,2555.4,2555.1,50.39468513]
[1748078345845,3.91330169,2555.4,2555.2,0.50187967]
[1748078346059,3.91340415,2555.4,2555.2,0.50187967]
[1748078346245,3.91343482,2555.3,2555.2,0.50187967]
[1748078346412,3.91343482,2555.3,2555.2,12.45187276]
[1748078347214,3.91343482,2555.3,2555.2,8.50187967]
[1748078347406,3.91343482,2555.3,2555.2,8.0]
[1748078347853,3.91343482,2555.3,2555.2,19.728]
[1748078348354,3.91343482,2555.3,2555.2,25.698]
[1748078348754,3.91343482,2555.3,2555.2,13.97]
[1748078349574,5.03003482,2555.3,2555.2,14.614]
[1748078350061,5.03018797,2555.2,2555.1,16.89]
[1748078350214,5.03018797,2555.2,2555.1,31.504]
[1748078350416,6.59343562,2555.2,2555.1,31.504]
[1748078350933,6.59343562,2555.2,2555.1,39.504]
[1748078356680,5.03018797,2555.2,2555.1,39.504]
[1748078359944,5.03018797,2555.2,2555.1,45.474]
[1748078362681,3.91358797,2555.2,2555.1,45.474]
[1748078362983,3.91358797,2555.2,2555.1,45.97587967]
[1748078364162,3.91358797,2555.2,2555.1,49.92587276]
[1748078364605,3.91343482,2555.3,2555.2,8.0]
[1748078364937,2.56634439,2555.5,2555.2,26.59759204]
[1748078365075,3.91328707,2555.4,2555.3,20.27100895]
[1748078365409,3.91328707,2555.4,2555.3,20.70069204]
[1748078365587,3.91328707,2555.4,2555.3,24.65068513]
[1748078368808,3.91328707,2555.4,2555.3,28.92068513]
[1748078369009,3.91328707,2555.4,2555.3,50.336]
[1748078370711,5.02988707,2555.4,2555.3,14.606]
[1748078370906,5.02988707,2555.4,2555.3,8.0]
[1748078371233,5.02988707,2555.4,2555.3,22.606]
[1748078371367,5.02988707,2555.4,2555.3,14.606]
[1748078371901,5.02988707,2555.4,2555.3,22.606]
[1748078375107,16.75888707,2555.4,2555.3,8.0]
[1748078375274,16.75888707,2555.4,2555.3,22.607]
[1748078376009,16.75888707,2555.4,2555.3,21.97151895]
[1748078376387,16.75888707,2555.4,2555.3,7.36451895]
[1748078377511,17.30888707,2555.4,2555.3,7.36451895]
[1748078380528,5.57988707,2555.4,2555.3,7.36451895]
[1748078380695,17.31088707,2555.4,2555.3,7.36451895]
[1748078381525,3.91343482,2555.3,2555.2,14.608]
[1748078387035,5.03003482,2555.3,2555.2,14.608]
[1748078387806,4.46358797,2555.2,2555.1,16.89]
[1748078388019,16.19458797,2555.2,2555.1,31.494]
[1748078388241,18.86885266,2555.2,2555.1,31.494]
[1748078389634,18.86885266,2555.2,2555.1,39.494]
[1748078389841,3.91450716,2554.6,2554.5,5.97]
[1748078390005,3.9146604,2554.5,2554.4,5.97]
[1748078390201,3.9146604,2554.5,2554.4,28.574]
[1748078395154,3.9146604,2554.5,2554.4,22.604]
[1748078395881,4.4646604,2554.5,2554.4,14.604]
[1748078396725,3.91527348,2554.1,2554.0,22.606]
[1748078396958,15.64827348,2554.1,2554.0,14.606]
[1748078397649,15.64827348,2554.1,2554.0,22.606]
[1748078398455,16.19827348,2554.1,2554.0,22.606]
[1748078402593,16.19827348,2554.1,2553.5,16.896]
[1748078402594,3.9160401,2553.6,2553.5,16.896]
[1748078402789,15.6510401,2553.6,2553.5,31.504]
[1748078402989,15.6510401,2553.6,2553.5,39.504]
[1748078405892,3.9160401,2553.6,2553.5,41.1188]
[1748078406193,3.9160401,2553.6,2553.5,44.43913421]
[1748078406802,3.9160401,2553.6,2553.5,41.62067967]
[1748078407099,3.9160401,2553.6,2553.5,47.59067967]
[1748078407671,3.9160401,2553.6,2553.5,47.0888]
[1748078411513,3.9160401,2553.6,2553.5,47.59067967]
[1748078412213,3.91582551,2553.8,2553.7,1.6286]
[1748078412371,3.91582551,2553.8,2553.7,32.25628513]
[1748078414411,3.91564415,2553.9,2553.8,9.5349]
[1748078414617,3.91552186,2554.0,2553.9,1.5349]
[1748078414818,3.91552186,2554.0,2553.9,24.1409]
[1748078415023,3.91552186,2554.0,2553.9,28.09089309]
[1748078416631,3.91552186,2554.0,2553.9,9.5349]
[1748078416941,3.91552186,2554.0,2553.9,14.605]
[1748078417395,3.91552186,2554.0,2553.9,22.605]
[1748078417797,3.91552186,2554.0,2553.9,14.605]
[1748078418034,3.91552186,2554.0,2553.9,22.605]
[1748078420741,15.65152186,2554.0,2553.9,22.605]
[1748078422044,15.65152186,2554.0,2553.9,8.0]
[1748078422343,16.76812186,2554.0,2553.9,22.606]
[1748078424115,3.91665361,2553.2,2553.1,0.05]
[1748078424345,3.91665361,2553.2,2553.1,14.656]
[1748078426245,3.91665361,2553.2,2553.1,22.656]
[1748078426444,3.91665361,2553.2,2553.1,39.28897967]
[1748078426644,3.91665361,2553.2,2553.1,39.75779204]
[1748078426941,3.91658295,2553.3,2553.2,9.5315]
[1748078427144,3.91658295,2553.3,2553.2,10.03337967]
[1748078430660,3.91658295,2553.3,2553.2,16.00337967]
[1748078431478,3.91626616,2553.5,2553.3,1.6434]
[1748078431682,3.91626616,2553.5,2553.4,15.6134]
[1748078433552,3.91626616,2553.5,2553.4,32.5154]
[1748078434773,3.91626616,2553.5,2553.4,44.2524]
[1748078440165,3.91536528,2554.1,2553.6,1.6434]
[1748078440466,5.47280152,2554.2,2553.9,1.6434]
[1748078440665,3.91527348,2554.1,2554.0,15.6134]
[1748078442272,3.91527348,2554.1,2554.0,1.6434]
[1748078443009,3.91527348,2554.1,2554.0,24.2464]
[1748078444418,3.91527348,2554.1,2554.0,26.57848166]
[1748078445920,3.91527348,2554.1,2554.0,38.31448166]
[1748078450400,3.91527348,2554.1,2554.0,35.9824]
[1748078452703,3.91527348,2554.1,2554.0,24.2464]
[1748078453042,3.91527348,2554.1,2554.0,35.9814]
[1748078457170,3.91527348,2554.1,2554.0,41.9514]
[1748078457337,3.91527348,2554.1,2554.0,58.8494]
[1748078459538,3.91343423,2555.4,2554.1,8.0]
[1748078459755,7.96836605,2555.9,2554.3,1.5809]
[1748078459925,3.91375831,2555.1,2554.6,1.5809]
[1748078460125,1.55766469,2555.5,2554.8,9.5809]
[1748078460324,1.55766469,2555.5,2555.0,8.0]
[1748078460325,3.91343982,2555.3,2555.0,8.0]
[1748078460562,6.48000436,2555.2,2555.1,24.897]
[1748078463167,6.48000436,2555.2,2555.1,39.497]
[1748078463640,7.59660436,2555.2,2555.1,31.495]
[1748078463827,19.32960436,2555.2,2555.1,16.897]
[1748078464031,19.32960436,2555.2,2555.1,39.495]
[1748078465564,19.87960436,2555.2,2555.1,16.897]
[1748078465739,19.87960436,2555.2,2555.1,24.897]
[1748078465940,19.87960436,2555.2,2555.1,7.36443761]
[1748078466251,17.31325997,2555.2,2555.1,7.36443761]
[1748078467567,16.76325997,2555.2,2555.1,7.36443761]
[1748078468773,17.31325997,2555.2,2555.1,7.36443761]
[1748078474371,5.03064751,2554.9,2554.8,14.599]
[1748078474534,16.76364751,2554.9,2554.8,14.599]
[1748078475279,5.03064751,2554.9,2554.8,14.599]
[1748078475579,16.76364751,2554.9,2554.8,14.599]
[1748078480581,3.91404751,2554.9,2554.8,22.599]
[1748078480740,3.91404751,2554.9,2554.8,31.49240967]
[1748078480943,3.91404751,2554.9,2554.8,33.10870967]
[1748078481144,3.91404751,2554.9,2554.8,32.60683]
[1748078481579,3.91404751,2554.9,2554.8,30.1853]
[1748078482576,3.91404751,2554.9,2554.8,30.68717967]
[1748078483283,3.91404751,2554.9,2554.8,30.1853]
[1748078492632,3.9139973,2555.0,2554.9,9.6488]
[1748078492918,3.91380753,2555.1,2555.0,1.6488]
[1748078497719,3.91389432,2555.0,2554.9,8.0]
[1748078497913,3.91389432,2555.0,2554.9,22.592]
[1748078498921,3.91389432,2555.0,2554.9,8.0]
[1748078499093,3.91389432,2555.0,2554.9,22.592]
[1748078505002,3.91389432,2555.0,2554.9,24.62167967]
[1748078505201,3.91389432,2555.0,2554.9,28.57167276]
[1748078507325,3.91389432,2555.0,2554.9,44.57167276]
[1748078509229,3.91389432,2555.0,2554.9,44.06979309]
[1748078510339,3.91181999,2555.0,2554.9,44.06979309]
[1748078512304,3.91381804,2555.1,2554.9,44.57167276]
[1748078512504,3.91381804,2555.1,2555.0,12.45187276]
[1748078512817,3.91381804,2555.1,2555.0,29.34387276]
[1748078513232,3.91381804,2555.1,2555.0,44.84199309]
[1748078518546,3.91381804,2555.1,2555.0,45.34387276]
[1748078521454,3.91320815,2555.5,2555.2,1.5928]
[1748078521620,3.91320815,2555.5,2555.0,41.72655246]
[1748078521621,3.91320815,2555.5,2555.4,1.5928]
[1748078521841,3.91320815,2555.5,2555.4,24.68267967]
[1748078522566,3.9130601,2555.6,2555.4,24.68267967]
[1748078523271,3.91312854,2555.5,2555.4,24.68267967]
[1748078524262,3.91312854,2555.5,2555.4,22.588]
[1748078524461,3.91312854,2555.5,2555.4,26.275008]
[1748078524832,3.91312854,2555.5,2555.4,8.0]
[1748078525032,3.91312854,2555.5,2555.4,28.557]
[1748078525258,3.91312854,2555.5,2555.4,20.557]
[1748078525656,3.91312854,2555.5,2555.4,28.557]
[1748078527999,3.91312854,2555.5,2555.4,13.97]
[1748078528185,3.91312854,2555.5,2555.4,28.557]
[1748078530761,3.91312854,2555.5,2555.4,22.587]
[1748078534799,3.91298736,2555.6,2555.4,22.587]
[1748078534800,3.91282231,2555.7,2555.6,1.5631]
[1748078535108,3.91282231,2555.7,2555.6,37.2921]
[1748078535263,3.91282231,2555.7,2555.6,37.79397967]
[1748078536308,1.86832147,2555.9,2555.7,8.0]
[1748078536511,0.30928291,2555.9,2555.8,12.88825887]
[1748078537353,4.22179904,2555.9,2555.8,12.88825887]
[1748078539846,4.22179904,2555.9,2555.8,28.88825887]
[1748078543857,4.22179904,2555.9,2555.8,53.1292792]
[1748078545171,4.22179904,2555.9,2555.8,38.579]
[1748078545628,4.22179904,2555.9,2555.8,28.549]
[1748078548973,4.22179904,2555.9,2555.8,45.435]
[1748078552167,4.22179904,2555.9,2555.8,46.9424]
[1748078552687,4.22179904,2555.9,2555.8,45.93687967]
[1748078554088,0.30928291,2555.9,2555.8,51.86309883]
[1748078554890,4.22179904,2555.9,2555.8,62.08069883]
[1748078555093,4.22179904,2555.9,2555.8,57.66187967]
[1748078555820,4.22179904,2555.9,2555.8,31.35787967]
[1748078556107,4.22179904,2555.9,2555.8,57.16]
[1748078557171,4.22179904,2555.9,2555.8,57.66187967]
[1748078558219,4.22179904,2555.9,2555.8,31.35787967]
[1748078558512,4.22179904,2555.9,2555.8,45.93587967]
[1748078561616,4.22179904,2555.9,2555.8,47.94030574]
[1748078561930,4.22179904,2555.9,2555.8,51.89029883]
[1748078563193,4.22179904,2555.9,2555.8,61.92029883]
[1748078567155,0.30928291,2555.9,2555.8,61.92029883]
[1748078567918,4.22179904,2555.9,2555.8,61.92029883]
[1748078569159,3.91223606,2556.1,2555.9,8.0]
[1748078569318,3.91223606,2556.1,2556.0,3.94999309]
[1748078569655,3.91223606,2556.1,2556.0,11.94999309]
[1748078570209,3.91223606,2556.1,2556.0,23.67499309]
[1748078570518,3.91223606,2556.1,2556.0,19.725]
[1748078570719,3.91223606,2556.1,2556.0,8.0]
[1748078570946,3.91223606,2556.1,2556.0,19.725]
[1748078575051,3.91223606,2556.1,2556.0,20.66320096]
[1748078577430,3.91129189,2556.7,2556.2,1.5226]
[1748078577624,3.91175089,2556.4,2556.3,24.01408063]
[1748078578264,3.91175089,2556.4,2556.3,0.93820096]
[1748078578471,3.91175089,2556.4,2556.3,35.23720096]
[1748078580297,3.91175089,2556.4,2556.3,23.51220096]
[1748078580683,3.91175089,2556.4,2556.3,8.93820096]
[1748078580885,3.91175089,2556.4,2556.3,23.51220096]
[1748078584899,3.91175089,2556.4,2556.3,22.574]
[1748078585063,3.91165934,2556.5,2556.4,8.0]
[1748078585259,3.91146509,2556.6,2556.4,8.50187967]
[1748078585260,3.91159244,2556.6,2556.4,8.50187967]
[1748078585474,3.91127028,2556.8,2556.4,20.22687967]
[1748078585765,3.91130437,2556.7,2556.5,1.5708]
[1748078586075,0.05,2556.9,2556.6,9.88873603]
[1748078586279,0.05,2556.9,2556.7,14.42015359]
[1748078586465,0.05,2556.9,2556.8,52.62308063]
[1748078592794,3.96098595,2556.9,2556.8,52.62308063]
[1748078592995,3.96098595,2556.9,2556.8,26.32408063]
[1748078593221,3.96098595,2556.9,2556.8,55.59213694]
[1748078593612,3.96098595,2556.9,2556.8,43.87013694]
[1748078593926,3.96098595,2556.9,2556.8,55.09025727]
[1748078594427,3.96098595,2556.9,2556.8,28.79725727]
[1748078594587,3.96098595,2556.9,2556.8,40.39320096]
[1748078595601,3.96098595,2556.9,2556.8,39.455]
[1748078596899,0.05,2556.9,2556.8,39.455]
[1748078597133,0.05,2556.9,2556.8,41.0223]
[1748078597329,3.96098595,2556.9,2556.8,44.97229309]
[1748078600830,0.05,2556.9,2556.8,44.97229309]
[1748078601407,3.96098595,2556.9,2556.8,44.97229309]
[1748078601608,3.96098595,2556.9,2556.8,45.91049405]
[1748078601804,0.05,2556.9,2556.8,46.41237372]
[1748078606657,0.05,2556.9,2556.8,46.88119979]
[1748078606867,3.91084932,2557.0,2556.9,8.88820096]
[1748078607158,3.91084932,2557.0,2556.9,25.06107372]
[1748078607762,3.91074988,2557.1,2556.9,25.06107372]
[1748078609460,3.91074988,2557.1,2557.0,0.83820096]
[1748078610363,3.80711055,2557.1,2557.0,0.83820096]
[1748078615969,3.80711055,2557.1,2557.0,23.40420096]
[1748078616263,3.80711055,2557.1,2557.0,27.35419405]
[1748078616842,3.80711055,2557.1,2557.0,39.07419405]
[1748078619195,3.80711055,2557.1,2557.0,49.10419405]
[1748078619689,3.80711055,2557.1,2557.0,37.38419405]
[1748078619892,4.92371055,2557.1,2557.0,30.58820096]
[1748078620104,4.92371055,2557.1,2557.0,45.15320096]
[1748078620267,4.92371055,2557.1,2557.0,18.86820096]
[1748078620468,4.92371055,2557.1,2557.0,45.15320096]
[1748078620668,4.92371055,2557.1,2557.0,18.86820096]
[1748078620915,4.92371055,2557.1,2557.0,45.15320096]
[1748078622004,3.80711055,2557.1,2557.0,45.15320096]
[1748078622202,3.91052713,2557.2,2557.1,8.0]
[1748078622986,3.91052713,2557.2,2557.1,22.565]
[1748078624214,3.90016358,2557.2,2557.1,22.565]
[1748078624509,3.90016358,2557.2,2557.1,25.69594882]
[1748078625313,3.90016358,2557.2,2557.1,23.40320096]
[1748078626914,3.90016358,2557.2,2557.1,0.83820096]
[1748078627214,3.90016358,2557.2,2557.1,23.40020096]
[1748078632493,3.90016358,2557.2,2557.1,35.12020096]
[1748078632695,3.90016358,2557.2,2557.1,8.83820096]
[1748078632935,3.90016358,2557.2,2557.1,23.40020096]
[1748078635339,4.23175716,2557.4,2557.2,8.0]
[1748078635636,3.91037422,2557.3,2557.2,8.0]
[1748078637042,3.91037422,2557.3,2557.2,8.83820096]
[1748078637952,3.91037422,2557.3,2557.2,25.71520096]
[1748078643841,3.91037422,2557.3,2557.2,40.27720096]
[1748078645178,3.91037422,2557.3,2557.2,25.71520096]
[1748078645387,5.02697422,2557.3,2557.2,40.27720096]
[1748078645755,5.02697422,2557.3,2557.2,25.71520096]
[1748078645951,0.32144538,2557.4,2557.2,40.27720096]
[1748078646143,4.23177417,2557.4,2557.3,12.47853943]
[1748078646344,4.23177417,2557.4,2557.3,8.52854634]
[1748078647878,4.23177417,2557.4,2557.3,34.282]
[1748078648803,4.23177417,2557.4,2557.3,35.12020096]
[1748078649473,4.23177417,2557.4,2557.3,23.40020096]
[1748078654419,4.23177417,2557.4,2557.3,8.83820096]
[1748078654631,4.23177417,2557.4,2557.3,23.39920096]
[1748078655685,5.34837417,2557.4,2557.3,23.39920096]
[1748078656495,3.90960982,2557.8,2557.4,8.0]
[1748078656810,3.91006842,2557.5,2557.4,0.83820096]
[1748078657011,3.91006842,2557.5,2557.4,23.39420096]
[1748078659885,28.34400249,2558.0,2557.5,8.0]
[1748078660085,3.90945697,2557.9,2557.5,0.52854634]
[1748078660286,3.91006842,2557.5,2557.4,20.55820096]
[1748078660486,3.91024546,2557.4,2557.2,16.877]
[1748078660709,3.91037422,2557.3,2557.2,16.877]
[1748078660987,3.91037422,2557.3,2557.2,39.433]
[1748078662789,3.91037422,2557.3,2557.2,24.877]
[1748078663031,3.91037422,2557.3,2557.2,39.433]
[1748078664430,3.91037422,2557.3,2557.2,24.877]
[1748078664848,3.91037422,2557.3,2557.2,39.434]
[1748078666300,3.91037422,2557.3,2557.2,40.27220096]
[1748078666507,3.91037422,2557.3,2557.2,25.71520096]
[1748078666738,3.91037422,2557.3,2557.2,40.27220096]
[1748078671057,3.91037422,2557.3,2557.2,25.71520096]
[1748078671256,3.91037422,2557.3,2557.2,40.27220096]
[1748078671432,3.91037422,2557.3,2557.2,39.434]
[1748078674066,3.91037422,2557.3,2557.2,39.96254634]
[1748078674231,3.91037422,2557.3,2557.2,43.91253943]
[1748078674561,3.91037422,2557.3,2557.2,43.38399309]
[1748078678086,3.91030042,2557.4,2557.3,8.0]
[1748078681293,3.91030042,2557.4,2557.3,19.72]
[1748078683596,3.91007496,2557.5,2557.3,19.72]
[1748078683756,3.91007496,2557.5,2557.4,11.94999309]
[1748078684268,3.90992211,2557.6,2557.5,8.0]
[1748078684486,3.90992211,2557.6,2557.5,9.639]
[1748078684854,3.90960652,2557.9,2557.5,1.639]
[1748078685139,26.78496393,2558.0,2557.7,8.0]
[1748078685253,26.78496393,2558.0,2557.9,8.0]
[1748078685457,26.78496393,2558.0,2557.9,22.42134832]
[1748078685702,16.51831438,2558.0,2557.9,26.33080529]
[1748078685990,16.51831438,2558.0,2557.9,37.60208585]
[1748078686212,16.51831438,2558.0,2557.9,38.15208585]
[1748078686400,16.51831438,2558.0,2557.9,42.10207894]
[1748078688198,16.51831438,2558.0,2557.9,52.75462197]
[1748078688496,16.51831438,2558.0,2557.9,52.20462197]
[1748078689099,16.51831438,2558.0,2557.9,51.80154237]
[1748078689874,15.68011342,2558.0,2557.9,50.96334141]
[1748078691375,19.58941756,2558.0,2557.9,50.42979507]
[1748078691777,19.58941756,2558.0,2557.9,24.15279507]
[1748078692006,19.58941756,2558.0,2557.9,50.42879507]
[1748078692215,19.58941756,2558.0,2557.9,23.62549309]
[1748078692423,19.58941756,2558.0,2557.9,44.306]
[1748078692717,19.58941756,2558.0,2557.9,36.306]
[1748078693810,19.58941756,2558.0,2557.9,44.306]
[1748078694776,19.58941756,2558.0,2557.9,44.305]
[1748078695909,19.58941756,2558.0,2557.9,34.275]
[1748078697418,19.58941756,2558.0,2557.9,40.27724634]
[1748078697721,19.58941756,2558.0,2557.9,12.38780198]
[1748078697882,19.58941756,2558.0,2557.9,34.80230198]
[1748078700915,19.58941756,2558.0,2557.9,34.275]
[1748078701282,15.68011342,2558.0,2557.9,34.80354634]
[1748078701915,15.68011342,2558.0,2557.9,35.33084832]
[1748078702539,15.68011342,2558.0,2557.9,39.66084832]
[1748078702817,15.68011342,2558.0,2557.9,43.61084141]